fUST/lending_fUST_20250311
["ID","MTS","AMOUNT","RATE_DAILY","PERIOD"]
[355886190,1741680644026,-500.0,0.00041095,120]
[355886191,1741680644035,-500.0,0.00041095,30]
[355886192,1741680644045,-500.0,0.00041095,120]
[355886193,1741680644054,-500.0,0.00041095,120]
[355886194,1741680644065,-544.52897697,0.00041095,120]
[355886195,1741680644075,-759.71,0.00041095,120]
[355886196,1741680644085,-792.02,0.00041095,120]
[355886197,1741680644095,-928.77,0.00041095,120]
[355886198,1741680644105,-500.0,0.00041095,120]
[355886199,1741680644114,-500.0,0.00041095,120]
[355886200,1741680644124,-500.0,0.00041095,120]
[355886201,1741680644134,-500.0,0.00041095,120]
[355886202,1741680644143,-500.0,0.00041095,120]
[355886203,1741680644153,-500.0,0.00041095,120]
[355886204,1741680644167,-5090.83,0.00041095,120]
[355886205,1741680644176,-597.54378112,0.00041095,120]
[355886206,1741680644186,-500.0,0.00041095,120]
[355886207,1741680644195,-500.0,0.00041095,120]
[355886208,1741680644204,-500.0,0.00041095,120]
[355886209,1741680644214,-502.54381494,0.00041095,120]
[355886210,1741680644224,-500.0,0.00041095,120]
[355886211,1741680644233,-1301.08,0.00041095,120]
[355886212,1741680644242,-500.0,0.00041095,120]
[355886213,1741680644251,-500.0,0.00041095,120]
[355886214,1741680644261,-529.46720629,0.00041095,120]
[355886215,1741680644270,-500.0,0.00041095,120]
[355886216,1741680644279,-500.0,0.00041095,120]
[355886217,1741680644288,-508.84888212,0.00041095,120]
[355886218,1741680644299,-500.0,0.00041095,120]
[355886219,1741680644308,-1320.93,0.00041095,120]
[355886220,1741680644317,-500.0,0.00041095,120]
[355886221,1741680644327,-500.0,0.00041095,120]
[355886222,1741680644338,-500.0,0.00041095,120]
[355886223,1741680644347,-524.75,0.00041095,120]
[355886224,1741680644356,-500.0,0.00041095,120]
[355886225,1741680644366,-500.0,0.00041095,120]
[355886226,1741680644376,-1205.71,0.00041095,120]
[355886227,1741680644386,-2757.57,0.00041095,120]
[355886228,1741680644395,-500.0,0.00041095,120]
[355886229,1741680644404,-500.0,0.00041095,120]
[355886230,1741680644413,-538.47,0.00041095,120]
[355886231,1741680644422,-500.0,0.00041095,120]
[355886232,1741680644433,-629.88387154,0.00041095,120]
[355886233,1741680644442,-1125.72,0.00041095,7]
[355886234,1741680644452,-19795.95,0.00041095,120]
[355886235,1741680644461,-683.84,0.00041095,120]
[355886236,1741680644470,-500.0,0.00041095,120]
[355886237,1741680644480,-500.0,0.00041095,120]
[355886238,1741680644489,-500.0,0.00041095,120]
[355886239,1741680644499,-500.0,0.00041095,120]
[355886240,1741680644508,-725.83,0.00041095,120]
[355886241,1741680644518,-2969.4,0.00041095,120]
[355886242,1741680644527,-500.0,0.00041095,120]
[355886243,1741680644536,-500.0,0.00041095,120]
[355886244,1741680644546,-642.27,0.00041095,120]
[355886245,1741680644555,-500.0,0.00041095,120]
[355886246,1741680644564,-500.0,0.00041095,120]
[355886247,1741680644575,-3710.27,0.00041095,120]
[355886248,1741680644585,-500.0,0.00041095,120]
[355886249,1741680644595,-1431.33,0.00041095,120]
[355886250,1741680644604,-500.0,0.00041095,120]
[355886251,1741680644614,-500.0,0.00041095,120]
[355886252,1741680644623,-500.0,0.00041095,120]
[355886253,1741680644632,-500.0,0.00041095,120]
[355886254,1741680644643,-1134.16,0.00041095,120]
[355886255,1741680644653,-524.10377472,0.00041095,120]
[355886256,1741680644662,-500.0,0.00041095,120]
[355886257,1741680644672,-500.0,0.00041095,120]
[355886258,1741680644681,-2994.9,0.00041095,120]
[355886259,1741680644691,-500.0,0.00041095,120]
[355886260,1741680644700,-760.77,0.00041095,120]
[355886261,1741680644709,-511.96507088,0.00041095,120]
[355886262,1741680644719,-611.22,0.00041095,120]
[355886263,1741680644731,-500.0,0.00041095,120]
[355886264,1741680644740,-500.0,0.00041095,120]
[355886265,1741680644749,-500.0,0.00041095,120]
[355886266,1741680644759,-500.0,0.00041095,120]
[355886267,1741680644768,-689.9,0.00041095,120]
[355886268,1741680644778,-522.59,0.00041095,120]
[355886269,1741680644788,-502.48961174,0.00041095,120]
[355886270,1741680644797,-523.24191443,0.00041095,120]
[355886271,1741680644807,-500.0,0.00041095,120]
[355886272,1741680644816,-691.62,0.00041095,120]
[355886273,1741680644826,-500.0,0.00041095,120]
[355886274,1741680644836,-680.24,0.00041095,120]
[355886275,1741680644844,-963.24,0.00041095,120]
[355886276,1741680644853,-160.0,0.00041095,7]
[355886277,1741680644863,-500.0,0.00041095,120]
[355886278,1741680644872,-1708.76,0.00041095,120]
[355886279,1741680644881,-500.0,0.00041095,120]
[355886280,1741680644890,-500.0,0.00041095,120]
[355886281,1741680644899,-517.9879967,0.00041095,120]
[355886282,1741680644909,-500.0,0.00041095,120]
[355886283,1741680644918,-500.0,0.00041095,120]
[355886284,1741680644927,-500.0,0.00041095,120]
[355886285,1741680644937,-500.0,0.00041095,120]
[355886286,1741680644947,-500.0,0.00041095,120]
[355886287,1741680644956,-500.0,0.00041095,120]
[355886288,1741680644965,-796.06,0.00041095,120]
[355886289,1741680644975,-500.0,0.00041095,120]
[355886290,1741680644984,-500.0,0.00041095,120]
[355886291,1741680644994,-500.0,0.00041095,120]
[355886292,1741680645003,-500.0,0.00041095,120]
[355886293,1741680645012,-500.0,0.00041095,120]
[355886294,1741680645022,-500.0,0.00041095,120]
[355886295,1741680645033,-500.0,0.00041095,120]
[355886296,1741680645044,-500.0,0.00041095,120]
[355886297,1741680645053,-439.26256697,0.00041095,120]
[355886298,1741680645062,-500.0,0.00041095,120]
[355886299,1741680645072,-500.0,0.00041095,120]
[355886300,1741680645084,-500.0,0.00041095,120]
[355886301,1741680645093,-500.0,0.00041095,120]
[355886302,1741680645103,-4930.69,0.00041095,120]
[355886303,1741680645113,-500.0,0.00041095,120]
[355886304,1741680645124,-500.0,0.00041095,120]
[355886305,1741680645133,-500.0,0.00041095,120]
[355886306,1741680645143,-500.0,0.00041095,120]
[355886307,1741680645152,-500.0,0.00041095,120]
[355886308,1741680645161,-500.0,0.00041095,120]
[355886309,1741680645172,-500.0,0.00041095,120]
[355886310,1741680645181,-500.0,0.00041095,120]
[355886311,1741680645190,-500.0,0.00041095,120]
[355886312,1741680645199,-500.0,0.00041095,120]
[355886313,1741680645210,-1159.83,0.00041095,120]
[355886314,1741680645220,-500.0,0.00041095,120]
[355886315,1741680645229,-500.0,0.00041095,120]
[355886316,1741680645238,-534.58,0.00041095,120]
[355886317,1741680645248,-500.0,0.00041095,120]
[355886318,1741680645258,-500.0,0.00041095,120]
[355886319,1741680645268,-500.0,0.00041095,120]
[355886320,1741680645278,-500.0,0.00041095,120]
[355886321,1741680645288,-500.0,0.00041095,120]
[355886324,1741680645297,-500.0,0.00041095,120]
[355886325,1741680645428,-500.0,0.00041095,120]
[355886327,1741680645438,-978.35,0.00041095,120]
[355886328,1741680645449,-500.0,0.00041095,120]
[355886329,1741680645459,-500.0,0.00041095,120]
[355886330,1741680645468,-257.57,0.00041095,120]
[355886331,1741680645478,-500.0,0.00041095,120]
[355886332,1741680645488,-1221.35,0.00041095,120]
[355886333,1741680645497,-500.0,0.00041095,120]
[355886334,1741680645506,-5143.87,0.00041095,120]
[355886335,1741680645516,-500.0,0.00041095,120]
[355886336,1741680645525,-500.0,0.00041095,120]
[355886337,1741680645535,-565.49908473,0.00041095,120]
[355886338,1741680645544,-500.0,0.00041095,120]
[355886339,1741680645555,-500.0,0.00041095,120]
[355886340,1741680645566,-151.0,0.00041095,14]
[355886341,1741680645575,-500.0,0.00041095,120]
[355886342,1741680645585,-500.0,0.00041095,120]
[355886343,1741680645594,-500.0,0.00041095,120]
[355886344,1741680645604,-13080.12,0.00041095,2]
[355886346,1741680645613,-500.0,0.00041095,120]
[355886348,1741680645622,-512.99086167,0.00041095,120]
[355886349,1741680645632,-500.0,0.00041095,120]
[355886350,1741680645642,-500.0,0.00041095,120]
[355886351,1741680645652,-501.62113148,0.00041095,120]
[355886352,1741680645661,-500.0,0.00041095,120]
[355886353,1741680645670,-984.54,0.00041095,120]
[355886355,1741680645681,-500.0,0.00041095,120]
[355886357,1741680645690,-844.99,0.00041095,120]
[355886358,1741680645699,-500.0,0.00041095,120]
[355886359,1741680645708,-500.0,0.00041095,120]
[355886360,1741680645718,-500.0,0.00041095,120]
[355886361,1741680645730,-500.0,0.00041095,120]
[355886362,1741680645740,-500.0,0.00041095,120]
[355886363,1741680645751,-500.0,0.00041095,120]
[355886364,1741680645760,-500.0,0.00041095,120]
[355886365,1741680645770,-151.0,0.00041095,14]
[355886366,1741680645780,-500.0,0.00041095,120]
[355886367,1741680645789,-500.0,0.00041095,120]
[355886368,1741680645798,-500.0,0.00041095,120]
[355886369,1741680645808,-500.0,0.00041095,120]
[355886370,1741680645819,-500.0,0.00041095,120]
[355886371,1741680645829,-5753.64,0.00041095,120]
[355886372,1741680645839,-465.028969,0.00041095,14]
[355886373,1741680645848,-500.0,0.00041095,120]
[355886374,1741680645857,-515.84506515,0.00041095,120]
[355886375,1741680645866,-500.0,0.00041095,120]
[355886376,1741680645877,-500.0,0.00041095,120]
[355886377,1741680645886,-500.0,0.00041095,2]
[355886378,1741680645896,-465.028969,0.00041095,14]
[355886379,1741680645905,-505.4777875,0.00041095,120]
[355886380,1741680645915,-500.0,0.00041095,120]
[355886381,1741680645924,-1136.13,0.00041095,120]
[355886382,1741680645933,-1061.43,0.00041095,120]
[355886383,1741680645942,-717.83,0.00041095,120]
[355886384,1741680645952,-500.0,0.00041095,2]
[355886385,1741680645962,-500.0,0.00041095,120]
[355886386,1741680645972,-500.0,0.00041095,120]
[355886387,1741680645982,-500.0,0.00041095,120]
[355886388,1741680645991,-500.0,0.00041095,120]
[355886389,1741680646000,-500.0,0.00041095,120]
[355886390,1741680646010,-500.0,0.00041095,30]
[355886391,1741680646019,-17579.82,0.00041095,120]
[355886392,1741680646029,-817.44,0.00041095,120]
[355886393,1741680646039,-425.66544732,0.00041095,2]
[355886394,1741680646049,-500.0,0.00041095,120]
[355886395,1741680646058,-500.0,0.00041095,120]
[355886396,1741680646068,-500.0,0.00041095,2]
[355886397,1741680646080,-1180.77,0.00041095,120]
[355886398,1741680646090,-171.5921714,0.00041096,2]
[355886399,1741680646100,-713.628042,0.00041096,60]
[355886400,1741680646109,-179.12,0.000411,30]
[355886401,1741680646119,-416.66666667,0.000411,30]
[355886402,1741680646128,-578.38,0.000411,14]
[355886403,1741680646137,-151.0,0.000411,20]
[355886404,1741680646148,-1000.0,0.000411,38]
[355886405,1741680646157,-970.23,0.000411,30]
[355886406,1741680646167,-151.0,0.000411,19]
[355886407,1741680646177,-746.14595463,0.00041101,2]
[355886408,1741680646186,-773.75335495,0.00041156,2]
[355886409,1741680646197,-151.0,0.000412,19]
[355886410,1741680646208,-802.38222908,0.00041211,2]
[355886411,1741680646217,-265.608116,0.00041211,2]
[355886412,1741680646227,-200.8803919,0.00041235,14]
[355886413,1741680646236,-166.0,0.00041235,14]
[355886414,1741680646248,-168.0,0.00041235,14]
[355886415,1741680646257,-166.0,0.00041235,14]
[355886416,1741680646268,-166.0,0.00041235,14]
[355886417,1741680646277,-166.0,0.00041235,14]
[355886418,1741680646287,-168.0,0.00041235,14]
[355886419,1741680646297,-168.0,0.00041235,14]
[355886420,1741680646307,-299.20946297,0.00041235,14]
[355886421,1741680646316,-352.0,0.00041235,14]
[355886422,1741680646325,-352.0,0.00041235,14]
[355886423,1741680646335,-352.0,0.00041235,14]
[355886424,1741680646345,-316.0,0.00041235,14]
[355886425,1741680646354,-316.0,0.00041235,14]
[355886426,1741680646364,-352.0,0.00041235,14]
[355886427,1741680646374,-316.0,0.00041235,14]
[355886428,1741680646385,-352.0,0.00041235,14]
[355886429,1741680646394,-316.0,0.00041235,14]
[355886430,1741680646403,-352.0,0.00041235,14]
[355886431,1741680646412,-316.0,0.00041235,14]
[355886432,1741680646422,-352.0,0.00041235,14]
[355886433,1741680646432,-316.0,0.00041235,14]
[355886434,1741680646441,-352.0,0.00041235,14]
[355886435,1741680646451,-316.0,0.00041235,14]
[355886436,1741680646461,-316.0,0.00041235,14]
[355886437,1741680646470,-352.0,0.00041235,14]
[355886438,1741680646481,-316.0,0.00041235,14]
[355886439,1741680646490,-316.0,0.00041235,14]
[355886440,1741680646500,-316.0,0.00041235,14]
[355886441,1741680646509,-316.0,0.00041235,14]
[355886442,1741680646519,-316.0,0.00041235,14]
[355886444,1741680646528,-316.0,0.00041235,14]
[355886446,1741680646538,-352.0,0.00041235,14]
[355886447,1741680646547,-316.0,0.00041235,14]
[355886448,1741680646557,-316.0,0.00041235,14]
[355886450,1741680646567,-316.0,0.00041235,14]
[355886452,1741680646576,-352.0,0.00041258,14]
[355886453,1741680646585,-832.07037156,0.00041266,2]
[355886455,1741680646595,-12098.59188219,0.00041269,2]
[355886456,1741680646604,-151.0,0.000413,11]
[355886458,1741680646614,-151.0,0.000413,13]
[355886459,1741680646623,-151.0,0.000413,14]
[355886461,1741680646632,-156.587,0.00041319,2]
[355886462,1741680646642,-862.8569753,0.00041321,2]
[355886464,1741680646653,-3802.4786,0.00041347,4]
[355886465,1741680646662,-680.0,0.00041347,120]
[355886467,1741680646671,-779.99,0.00041348,120]
[355886468,1741680646681,-680.0,0.00041351,120]
[355886470,1741680646690,-680.0,0.00041354,120]
[355886472,1741680646699,-680.0,0.00041355,120]
[355886473,1741680646708,-499.98,0.00041356,120]
[355886475,1741680646718,-720.02,0.00041356,120]
[355886477,1741680646727,-680.0,0.00041357,120]
[355886478,1741680646739,-680.0,0.0004136,120]
[355886479,1741680646750,-680.0,0.0004136,120]
[355886480,1741680646759,-680.0,0.00041362,120]
[355886481,1741680646768,-680.0,0.00041363,120]
[355886482,1741680646779,-680.0,0.00041366,120]
[355886483,1741680646788,-234182.42150288,0.00041369,30]
[355886484,1741680646797,-151.0,0.00041369,120]
[355886485,1741680646807,-529.59642747,0.00041369,120]
[355886486,1741680646821,-500.0,0.00041369,2]
[355886487,1741680646831,-500.0,0.00041369,120]
[355886488,1741680646840,-500.0,0.00041369,120]
[355886489,1741680646850,-500.0,0.00041369,120]
[355886490,1741680646859,-500.0,0.00041369,120]
[355886491,1741680646871,-754.08,0.00041369,120]
[355886492,1741680646880,-500.0,0.00041369,120]
[355886493,1741680646890,-500.0,0.00041369,5]
[355886494,1741680646899,-500.0,0.00041369,120]
[355886495,1741680646910,-500.0,0.00041369,120]
[355886496,1741680646921,-516.63,0.00041369,120]
[355886497,1741680646930,-518.07,0.00041369,120]
[355886498,1741680646940,-669.16,0.00041369,120]
[355886499,1741680646950,-500.0,0.00041369,120]
[355886500,1741680646960,-500.0,0.00041369,120]
[355886501,1741680646970,-500.0,0.00041369,120]
[355886502,1741680646979,-500.0,0.00041369,120]
[355886503,1741680646988,-500.0,0.00041369,120]
[355886504,1741680646999,-500.0,0.00041369,120]
[355886505,1741680647009,-500.0,0.00041369,120]
[355886506,1741680647018,-151.0,0.00041369,110]
[355886507,1741680647027,-546.89,0.00041369,120]
[355886508,1741680647037,-151.0,0.00041369,120]
[355886509,1741680647046,-500.0,0.00041369,120]
[355886510,1741680647056,-500.0,0.00041369,120]
[355886511,1741680647066,-500.0,0.00041369,120]
[355886512,1741680647075,-500.0,0.00041369,120]
[355886513,1741680647085,-500.0,0.00041369,120]
[355886514,1741680647094,-674.33,0.00041369,120]
[355886515,1741680647104,-689.12,0.00041369,120]
[355886516,1741680647113,-486.44995388,0.00041369,120]
[355886517,1741680647123,-500.0,0.00041369,120]
[355886518,1741680647133,-500.0,0.00041369,120]
[355886519,1741680647143,-500.0,0.00041369,120]
[355886520,1741680647152,-500.0,0.00041369,120]
[355886521,1741680647162,-500.0,0.00041369,120]
[355886522,1741680647173,-647.92,0.00041369,120]
[355886523,1741680647183,-151.0,0.00041369,120]
[355886524,1741680647195,-500.0,0.00041369,120]
[355886525,1741680647204,-500.0,0.00041369,120]
[355886526,1741680647214,-548.45858048,0.00041369,120]
[355886527,1741680647225,-947.91,0.00041369,120]
[355886528,1741680647234,-500.0,0.00041369,120]
[355886529,1741680647246,-500.0,0.00041369,120]
[355886530,1741680647255,-500.0,0.00041369,120]
[355886531,1741680647265,-1000.0,0.00041369,120]
[355886532,1741680647275,-890.16,0.00041369,120]
[355886533,1741680647284,-500.0,0.00041369,120]
[355886534,1741680647293,-500.0,0.00041369,120]
[355886535,1741680647302,-1024.43,0.00041369,120]
[355886536,1741680647311,-573.36763138,0.00041369,2]
[355886537,1741680647323,-500.0,0.00041369,120]
[355886538,1741680647335,-864.4,0.00041369,120]
[355886539,1741680647345,-594.42,0.00041369,120]
[355886540,1741680647355,-278.24024527,0.00041369,120]
[355886541,1741680647365,-500.0,0.00041369,120]
[355886542,1741680647374,-500.0,0.00041369,2]
[355886543,1741680647384,-500.0,0.00041369,120]
[355886544,1741680647393,-500.0,0.00041369,2]
[355886545,1741680647402,-707.74,0.00041369,120]
[355886546,1741680647412,-500.0,0.00041369,120]
[355886547,1741680647522,-695.41,0.00041369,2]
[355886548,1741680647544,-500.0,0.00041369,120]
[355886549,1741680647554,-500.0,0.00041369,120]
[355886550,1741680647563,-500.0,0.00041369,120]
[355886551,1741680647573,-500.0,0.00041369,120]
[355886552,1741680647583,-1164.97,0.00041369,120]
[355886553,1741680647593,-713.6,0.00041369,120]
[355886554,1741680647603,-500.0,0.00041369,120]
[355886555,1741680647612,-726.46,0.00041369,120]
[355886556,1741680647621,-500.0,0.00041369,120]
[355886557,1741680647631,-500.0,0.00041369,120]
[355886558,1741680647641,-578.3,0.00041369,120]
[355886559,1741680647654,-693.13,0.00041369,120]
[355886560,1741680647665,-500.0,0.00041369,120]
[355886561,1741680647674,-696.13,0.00041369,120]
[355886562,1741680647685,-500.0,0.00041369,120]
[355886563,1741680647695,-500.0,0.00041369,120]
[355886564,1741680647705,-500.0,0.00041369,120]
[355886565,1741680647714,-563.09729595,0.00041369,120]
[355886566,1741680647728,-598.01,0.00041369,120]
[355886567,1741680647737,-1507.52,0.00041369,15]
[355886568,1741680647747,-500.0,0.00041369,120]
[355886569,1741680647757,-633.29,0.00041369,120]
[355886570,1741680647767,-500.0,0.00041369,120]
[355886571,1741680647778,-1542.45,0.00041369,120]
[355886572,1741680647787,-538.09475354,0.00041369,120]
[355886573,1741680647798,-500.0,0.00041369,120]
[355886574,1741680647807,-1108.15,0.00041369,120]
[355886575,1741680647816,-685.04,0.00041369,120]
[355886576,1741680647825,-500.0,0.00041369,120]
[355886577,1741680647836,-895.93,0.00041369,120]
[355886578,1741680647845,-500.0,0.00041369,120]
[355886579,1741680647854,-500.0,0.00041369,120]
[355886580,1741680647864,-500.0,0.00041369,120]
[355886581,1741680647873,-715.14,0.00041369,120]
[355886582,1741680647883,-827.76,0.00041369,120]
[355886583,1741680647892,-500.0,0.00041369,120]
[355886584,1741680647902,-500.0,0.00041369,120]
[355886585,1741680647911,-635.32,0.00041369,120]
[355886586,1741680647920,-656.97,0.00041369,120]
[355886587,1741680647931,-500.0,0.00041369,120]
[355886588,1741680647940,-500.0,0.00041369,120]
[355886589,1741680647950,-500.0,0.00041369,120]
[355886590,1741680647959,-537.54545533,0.00041369,120]
[355886591,1741680647969,-500.0,0.00041369,120]
[355886592,1741680647979,-500.0,0.00041369,120]
[355886593,1741680647988,-500.0,0.00041369,120]
[355886594,1741680647998,-734.22,0.00041369,120]
[355886595,1741680648007,-1862.9,0.00041369,120]
[355886596,1741680648017,-634.07642831,0.00041369,120]
[355886597,1741680648028,-500.0,0.00041369,120]
[355886598,1741680648037,-500.0,0.00041369,120]
[355886599,1741680648047,-500.0,0.00041369,120]
[355886600,1741680648057,-500.0,0.00041369,120]
[355886601,1741680648067,-1666.69,0.00041369,120]
[355886602,1741680648077,-670.63,0.00041369,120]
[355886603,1741680648088,-779.99,0.00041369,120]
[355886604,1741680648098,-629.47,0.00041369,120]
[355886605,1741680648108,-956.05,0.00041369,120]
[355886606,1741680648118,-500.0,0.00041369,120]
[355886607,1741680648128,-741.88,0.00041369,120]
[355886608,1741680648139,-500.0,0.00041369,120]
[355886609,1741680648150,-500.0,0.00041369,120]
[355886610,1741680648159,-500.0,0.00041369,120]
[355886611,1741680648169,-413.45347343,0.00041369,120]
[355886612,1741680648180,-586.79,0.00041369,120]
[355886613,1741680648189,-500.0,0.00041369,120]
[355886614,1741680648200,-552.12871049,0.00041369,120]
[355886615,1741680648210,-500.0,0.00041369,120]
[355886616,1741680648220,-500.0,0.00041369,120]
[355886617,1741680648230,-500.0,0.00041369,120]
[355886618,1741680648239,-500.0,0.00041369,120]
[355886619,1741680648249,-500.0,0.00041369,120]
[355886620,1741680648258,-500.0,0.00041369,120]
[355886621,1741680648268,-636.41,0.00041369,120]
[355886622,1741680648278,-1000.74,0.00041369,120]
[355886623,1741680648290,-305.97503463,0.00041369,120]
[355886624,1741680648300,-531.90537679,0.00041369,120]
[355886625,1741680648310,-500.0,0.00041369,120]
[355886626,1741680648319,-530.66512449,0.00041369,120]
[355886627,1741680648329,-2617.19,0.00041369,120]
[355886628,1741680648342,-608.04,0.00041369,120]
[355886629,1741680648351,-500.0,0.00041369,120]
[355886630,1741680648362,-500.0,0.00041369,120]
[355886631,1741680648372,-757.89,0.00041369,120]
[355886632,1741680648382,-500.0,0.00041369,120]
[355886633,1741680648392,-500.0,0.00041369,120]
[355886634,1741680648401,-354.600768,0.00041369,120]
[355886635,1741680648412,-713.28,0.00041369,120]
[355886636,1741680648422,-514.18,0.00041369,120]
[355886637,1741680648432,-200.0,0.00041369,7]
[355886638,1741680648442,-500.0,0.00041369,120]
[355886639,1741680648452,-354.600768,0.00041369,120]
[355886640,1741680648461,-500.0,0.00041369,120]
[355886641,1741680648471,-500.0,0.00041369,120]
[355886642,1741680648481,-2730.79,0.00041369,120]
[355886643,1741680648491,-500.0,0.00041369,120]
[355886644,1741680648500,-860.55,0.00041369,120]
[355886645,1741680648512,-500.0,0.00041369,120]
[355886646,1741680648523,-597.57,0.00041369,3]
[355886647,1741680648532,-151.0,0.00041369,120]
[355886648,1741680648542,-451.1,0.00041369,120]
[355886649,1741680648551,-625.42,0.00041369,120]
[355886650,1741680648560,-500.0,0.00041369,120]
[355886651,1741680648570,-500.0,0.00041369,120]
[355886652,1741680648580,-591.05,0.00041369,120]
[355886653,1741680648590,-500.0,0.00041369,120]
[355886654,1741680648599,-151.0,0.00041369,90]
[355886655,1741680648609,-690.37,0.00041369,120]
[355886656,1741680648619,-500.0,0.00041369,120]
[355886657,1741680648630,-2480.94,0.00041369,120]
[355886658,1741680648640,-500.0,0.00041369,120]
[355886659,1741680648651,-537.25,0.00041369,120]
[355886660,1741680648661,-500.0,0.00041369,120]
[355886661,1741680648671,-151.0,0.00041369,120]
[355886662,1741680648681,-500.0,0.00041369,120]
[355886663,1741680648691,-500.0,0.00041369,120]
[355886664,1741680648701,-500.0,0.00041369,120]
[355886665,1741680648711,-500.0,0.00041369,120]
[355886666,1741680648721,-2318.53,0.00041369,120]
[355886667,1741680648732,-897.31,0.00041369,120]
[355886668,1741680648742,-500.0,0.00041369,120]
[355886669,1741680648752,-887.36,0.00041369,120]
[355886670,1741680648762,-500.0,0.00041369,21]
[355886671,1741680648773,-500.0,0.00041369,120]
[355886672,1741680648783,-500.0,0.00041369,120]
[355886673,1741680648792,-500.0,0.00041369,120]
[355886674,1741680648802,-500.0,0.00041369,120]
[355886675,1741680648811,-1520.17,0.00041369,120]
[355886676,1741680648822,-500.0,0.00041369,120]
[355886677,1741680648832,-533.93,0.00041369,120]
[355886678,1741680648843,-563.16,0.00041369,120]
[355886679,1741680648853,-500.0,0.00041369,120]
[355886680,1741680648863,-511.02202936,0.00041369,120]
[355886681,1741680648874,-500.0,0.00041369,120]
[355886682,1741680648884,-723.57,0.00041369,120]
[355886683,1741680648894,-500.0,0.00041369,120]
[355886684,1741680648903,-500.0,0.00041369,120]
[355886685,1741680648912,-1193.77,0.00041369,120]
[355886686,1741680648922,-500.0,0.00041369,120]
[355886687,1741680648932,-500.0,0.00041369,120]
[355886688,1741680648942,-500.0,0.00041369,120]
[355886689,1741680648952,-568.14,0.00041369,120]
[355886690,1741680648961,-500.0,0.00041369,120]
[355886691,1741680648971,-500.0,0.00041369,120]
[355886692,1741680648981,-5687.09,0.00041369,120]
[355886693,1741680648990,-500.0,0.00041369,120]
[355886694,1741680649000,-756.33,0.00041369,120]
[355886695,1741680649010,-500.0,0.00041369,120]
[355886696,1741680649019,-1859.15,0.00041369,120]
[355886697,1741680649029,-643.36618949,0.00041369,120]
[355886698,1741680649039,-1191.86,0.00041369,120]
[355886699,1741680649048,-500.0,0.00041369,120]
[355886700,1741680649057,-1123.72,0.00041369,120]
[355886701,1741680649067,-723.25,0.00041369,120]
[355886702,1741680649076,-825.38,0.00041369,120]
[355886703,1741680649088,-500.0,0.00041369,120]
[355886704,1741680649097,-853.53,0.00041369,120]
[355886705,1741680649108,-1051.07,0.00041369,120]
[355886706,1741680649118,-144678.23,0.00041369,7]
[355886707,1741680649127,-601.01,0.00041369,120]
[355886708,1741680649137,-646.48,0.00041369,120]
[355886709,1741680649146,-634.5,0.00041369,120]